Cogmind - Beta 14 @@@ ROGUE MODE // 2025.03.25 @ 11:05:38 Player: IA-Sg3M Result: Destroyed by G-73 Enforcer with Phase Gun Performance ------------- Evolutions (8) 4000 Regions Visited (31) 6200 Robots Destroyed (128) 640 Value Destroyed (5257) 5257 Prototype IDs (79) 1580 Alien Tech Used (5) 1000 Bonus (10983) 10983 TOTAL SCORE: 29660 Bonus ------- Pacifist 200 High Alert Combat Kills 442 Follower Combat Kills 131 Met Data Miner 300 Met Warlord at Base 500 MAIN.C Attacked Warlord 500 Warlord Defense Kills 54 Found Hidden Lab 3000 Used Core Reset Matrix 3000 Met Warlord at Research 2000 Scanned by Researcher 500 Pursued by Intercept 500 Friendly Fire -144 Cogmind --------- Core Integrity 0/1450 Matter 22/300 Energy 100/100 System Corruption 39% Temperature Cool (9) Movement Core (50) Location -2/Testing Parts ------- > --- POWER (2) -------- (None) > --- PROPULSION (8) --- High-density Centrium Heavy Treads > --- UTILITY (11) ----- Advanced Hacking Suite > --- WEAPON (3) ------- (None) > --- INVENTORY (5) ---- Null Cannon Neutron Missile Launcher Guided Micro-nuke Launcher Peak State ------------ > --- POWER ------------ Quantum Reactor Light Quantum Reactor > --- PROPULSION ------- Advanced Heavy Treads Flexi-carbon Leg Myomer Leg Centrium Leg Myomer Exoskeleton > --- UTILITY ---------- Experimental Heat Sink High-capacity Storage Unit Improved Core Shielding Heavy Reflective Plating Heavy Reflective Plating Experimental Powered Armor Advanced Hacking Suite Advanced Hacking Suite Advanced Corruption Screen > --- WEAPON ----------- Nova Cannon Null Cannon Helical Railgun > --- INVENTORY -------- Light Neutrino Core Light Antimatter Reactor Enhanced Armored Medium Treads Advanced Heat Sink Advanced Terrain Scan Processor Heavy Reflective Plating Heavy Reflective Plating Heavy Disruptor Cannon Heavy Disruptor Cannon Potential Cannon Helical Railgun Neutron Missile Launcher Hellfire Missile Launcher Guided Micro-nuke Launcher [Rating: 201] Favorites ----------- Power Light Neutrino Core Engine Angular Momentum Engine Power Core Light Neutrino Core Reactor Antimatter Reactor Propulsion Improved Flight Unit Treads Advanced Heavy Treads Leg Flexi-carbon Leg Hover Unit Antigrav System Flight Unit Improved Flight Unit Utility Hacking Suite Device Seismic Detector Storage Medium Storage Unit Processor Advanced Signal Interpreter Hackware Hacking Suite Protection Heavy Armor Plating Weapon Katana Energy Gun Heavy Beamcaster Energy Cannon Enhanced Nova Cannon Ballistic Gun Helical Railgun Ballistic Cannon Heavy Gauss Cannon Launcher Hellfire Missile Launcher Impact Weapon Thunder Hammer Slashing Weapon Katana Piercing Weapon Force Lance Build | -11 -10 -9 -9 -9 -8 -8 -7 -7 -7 -7 -6 -6 -6 -6 -6 -5 -5 -5 -5 -5 -4 -4 -4 -4 -4 -3 -3 -3 -3 -2 -2 ------- Run | Yrd Mat Mat Min Exi Min Mat Fac Low Low Zio Pro Fac Low Low Dat Pro Fac Upp Upp War Pro Fac Upp Upp Zhi Pro Res Arm Lab Res Tes Slots Evolved 16 | . . 2 . . . 2 2 . . . . 2 . . . . 2 . . . . 2 . . . . 2 . . 2 . Power 1 | . . . . . . . . . . . . . . . . . . . . . . . . . . . . . . 1 . Propulsion 5 | . . 1 . . . 2 1 . . . . . . . . . . . . . . 1 . . . . . . . . . Utility 9 | . . 1 . . . . 1 . . . . 2 . . . . 2 . . . . 1 . . . . 2 . . . . Weapon 1 | . . . . . . . . . . . . . . . . . . . . . . . . . . . . . . 1 . Parts Attached 270 | 2 4 4 2 . . 13 12 2 1 . . 5 . 2 . 4 13 6 . 14 1 36 . 2 8 . 4 20 6 47 62 Power 31 | . . . . . . 2 4 . . . . 1 . . . 1 2 . . . . 5 . . 1 . . 2 . 8 5 Engine 4 | . . . . . . 2 . . . . . 1 . . . . . . . . . 1 . . . . . . . . . Core 14 | . . . . . . . 4 . . . . . . . . 1 2 . . . . 4 . . . . . . . 1 2 Reactor 13 | . . . . . . . . . . . . . . . . . . . . . . . . . 1 . . 2 . 7 3 Propulsion 60 | . 2 1 . . . 5 2 . . . . 2 . . . 2 3 . . 2 . 11 . . . . . 6 . 15 9 Treads 8 | . . . . . . . . . . . . . . . . . . . . . . . . . . . . . . 3 5 Leg 7 | . . . . . . . . . . . . . . . . . . . . . . . . . . . . . . 3 4 Wheel . | . . . . . . . . . . . . . . . . . . . . . . . . . . . . . . . . Hover 7 | . . . . . . . . . . . . . . . . . . . . . . . . . . . . . . 7 . Flight 38 | . 2 1 . . . 5 2 . . . . 2 . . . 2 3 . . 2 . 11 . . . . . 6 . 2 . Utility 112 | . 2 1 . . . 4 4 2 . . . 2 . . . . 6 6 . 11 1 14 . 2 7 . 3 6 4 15 22 Device 50 | . 1 . . . . . 1 2 . . . . . . . . 2 3 . 6 1 7 . 1 5 . 2 3 . 10 6 Storage 7 | . . . . . . 1 1 . . . . . . . . . . . . . . . . . 1 . . 1 . 2 1 Processor 12 | . . 1 . . . . . . . . . . . . . . . . . 1 . 3 . . . . . 1 . 1 5 Hackware 12 | . . . . . . . 1 . . . . 2 . . . . 2 1 . 1 . 1 . . 1 . 1 . 1 . 1 Protection 31 | . 1 . . . . 3 1 . . . . . . . . . 2 2 . 3 . 3 . 1 . . . 1 3 2 9 Artifact . | . . . . . . . . . . . . . . . . . . . . . . . . . . . . . . . . Weapon 67 | 2 . 2 2 . . 2 2 . 1 . . . . 2 . 1 2 . . 1 . 6 . . . . 1 6 2 9 26 Energy Gun 4 | . . . . . . . . . . . . . . . . . . . . . . . . . . . . . . 2 2 Energy Cannon 23 | . . . . . . . . . . . . . . . . . . . . . . 1 . . . . 1 1 1 5 14 Ballistic Gun 7 | 2 . . . . . . . . . . . . . . . . . . . . . 1 . . . . . . . . 4 Ballistic Cannon 1 | . . . . . . . . . . . . . . . . . . . . . . 1 . . . . . . . . . Launcher 15 | . . . 1 . . . . . . . . . . 1 . . . . . . . 1 . . . . . 4 . 2 6 Special Weapon . | . . . . . . . . . . . . . . . . . . . . . . . . . . . . . . . . Impact Weapon 3 | . . . . . . . . . . . . . . . . . 2 . . 1 . . . . . . . . . . . Slashing Weapon 12 | . . 2 1 . . 2 2 . 1 . . . . 1 . 1 . . . . . . . . . . . 1 1 . . Piercing Weapon 2 | . . . . . . . . . . . . . . . . . . . . . . 2 . . . . . . . . . Special Melee Weapon . | . . . . . . . . . . . . . . . . . . . . . . . . . . . . . . . . Unidentified Prototypes 45 | . 1 . . . . 1 . . . . . . . . . 1 2 . . 7 . 2 . . 4 . . 7 6 3 11 Parts Lost 77 | . . . . . . . 1 . . . . . . . . . . 2 . . 1 16 . . . 1 . 1 6 16 33 Power 11 | . . . . . . . 1 . . . . . . . . . . . . . . 4 . . . . . . 1 2 3 Propulsion 27 | . . . . . . . . . . . . . . . . . . . . . 1 5 . . . 1 . . 4 7 9 Utility 31 | . . . . . . . . . . . . . . . . . . 2 . . . 7 . . . . . 1 1 6 14 Weapon 8 | . . . . . . . . . . . . . . . . . . . . . . . . . . . . . . 1 7 Highest Loss Streak 19 | . . . . . . . 1 . . . . . . . . . . 2 . . 1 7 . . . 1 . 1 6 13 19 To Critical Strikes 3 | . . . . . . . . . . . . . . . . . . . . . . . . . . . . . . . 3 Average Slot Usage (%) 86 | . 56 77 77 77 77 95 99 100 100 100 100 100 100 100 100 100 94 93 94 94 90 83 89 89 88 85 90 90 80 68 73 Engine 1 | . . . . . . 7 1 . . . . 6 6 6 6 3 . . . . . 1 . . . . . . . . . Core 2 | . . . . . . . 5 7 7 7 7 . . . . 2 5 5 5 5 5 2 5 5 2 . . . . . 1 Reactor 1 | . . . . . . . . . . . . . . . . . . . . . . . . . 2 5 4 4 3 4 4 Treads 1 | . . . . . . . . . . . . . . . . . . . . . . . . . . . . . . 1 8 Leg 1 | . . . . . . . . . . . . . . . . . . . . . . . . . . . . . . 2 9 Hover 1 | . . . . . . . . . . . . . . . . . . . . . . . . . . . . . . 8 1 Flight 26 | . 14 33 33 33 33 44 46 46 46 46 46 40 40 40 40 40 29 29 29 29 27 30 31 31 31 27 23 24 20 4 1 Device 10 | . 7 11 11 11 11 9 6 14 15 15 15 13 13 13 13 13 10 9 11 6 1 5 10 9 4 5 14 13 12 15 9 Storage 3 | . . . . . . . 5 7 7 7 7 6 6 6 6 6 5 5 5 5 5 . . . . . . . . . 3 Processor 3 | . . 1 . . . . . . . . . . . . . . . . . . . 8 10 10 10 10 9 9 9 11 4 Hackware 14 | . . . . . . . 7 7 7 7 7 20 20 20 20 20 29 28 29 29 29 24 26 26 26 26 23 23 22 7 6 Protection 4 | . 7 11 11 11 11 16 8 . . . . . . . . . . 1 . 4 7 4 . . 5 5 4 3 2 2 9 Energy Cannon 1 | . . . . . . . . . . . . . . . . . . . . . . . . . . . 4 2 3 3 7 Impact Weapon 1 | . . . . . . . . . . . . . . . . . 1 11 11 11 9 . . . . . . . . . . Slashing Weapon 6 | . . 18 21 22 22 18 15 15 15 15 15 13 13 12 13 13 9 . . . . . . . . . . 2 3 . . Peak Build Rating 201 | 2 12 19 19 19 19 33 43 41 42 42 42 53 53 54 54 55 75 81 73 95 94 107 107 107 115 112 130 135 143 149 201 Average Rating 82 | . 6 18 18 19 19 28 38 40 41 42 42 51 53 53 54 53 66 75 73 84 89 87 107 106 108 108 128 130 122 109 151 On Entrance 62 | . 2 12 19 19 19 19 31 43 41 42 42 42 53 53 54 54 54 75 73 73 94 69 107 107 106 112 107 130 128 89 133 Naked Turns . | . . . . . . . . . . . . . . . . . . . . . . . . . . . . . . . . Heaviest Build 148 | 2 8 10 11 10 10 16 27 24 22 22 22 30 30 32 30 30 28 34 28 34 34 28 13 21 26 26 40 40 52 127 148 Greatest Support 189 | 3 10 10 10 10 10 24 30 30 30 30 25 30 30 30 30 30 33 33 33 37 37 46 27 27 33 42 42 49 49 98 189 Greatest Overweight (x) 7 | . . . 1 . . . . . . . . . . 1 . . . 1 . 1 . 7 . . . . . . 1 2 1 Average Overweight (x) . | . . . . . . . . . . . . . . . . . . . . . . . . . . . . . . . . Largest Inventory Capacity 20 | 5 5 5 5 5 5 10 10 10 10 10 10 10 10 10 10 10 10 10 10 10 10 10 5 5 5 5 5 5 5 20 20 Average Capacity 9 | 5 5 5 5 5 5 5 9 10 10 10 10 10 10 10 10 10 10 10 10 10 10 5 5 5 5 5 5 5 5 7 19 Most Carried 20 | . 5 5 5 5 5 5 10 10 10 10 10 10 10 10 10 10 10 10 8 10 10 10 5 5 5 5 5 5 5 9 20 Average Carried 8 | . 4 4 5 5 5 4 8 9 10 9 10 9 10 9 10 9 9 9 8 9 10 5 4 5 4 5 3 4 4 5 15 Final Capacity 20 | 5 5 5 5 5 5 5 10 10 10 10 10 10 10 10 10 10 10 10 10 10 10 5 5 5 5 5 5 5 5 20 5 Final Carried 10 | . 5 5 5 5 5 5 10 10 10 10 10 10 10 10 10 10 10 8 8 10 10 5 5 5 5 5 5 5 5 9 4 Class Distribution -------------------- 23% | Wizard-Sprinter 23% | Hacker-Sprinter 20% | Sprinter 8% | Scavenger-Tank 7% | Mutant 6% | Scavenger-Mutant 3% | Scavenger-Skirmisher Dominant Class ---------------- Mutant | -10/Materials Mutant | -9/Materials Mutant | -9/Mines Mutant | -9/Exiles Mutant | -8/Mines Sprinter | -8/Materials Sprinter | -7/Factory Sprinter | -7/Lower Caves Sprinter | -7/Lower Caves Sprinter | -7/Zion Sprinter | -6/Proximity Caves Hacker-Sprinter | -6/Factory Hacker-Sprinter | -6/Lower Caves Hacker-Sprinter | -6/Lower Caves Hacker-Sprinter | -6/Data Miner Hacker-Sprinter | -5/Proximity Caves Hacker-Sprinter | -5/Factory Hacker-Sprinter | -5/Upper Caves Hacker-Sprinter | -5/Upper Caves Hacker-Sprinter | -5/Warlord Wizard-Sprinter | -4/Proximity Caves Wizard-Sprinter | -4/Factory Wizard-Sprinter | -4/Upper Caves Wizard-Sprinter | -4/Upper Caves Wizard-Sprinter | -4/Zhirov Wizard-Sprinter | -3/Proximity Caves Wizard-Sprinter | -3/Research Wizard-Sprinter | -3/Armory Wizard-Sprinter | -3/Lab Scavenger-Mutant | -2/Research Scavenger-Tank | -2/Testing Resources | -11 -10 -9 -9 -9 -8 -8 -7 -7 -7 -7 -6 -6 -6 -6 -6 -5 -5 -5 -5 -5 -4 -4 -4 -4 -4 -3 -3 -3 -3 -2 -2 ----------- Run | Yrd Mat Mat Min Exi Min Mat Fac Low Low Zio Pro Fac Low Low Dat Pro Fac Upp Upp War Pro Fac Upp Upp Zhi Pro Res Arm Lab Res Tes Matter Collected 3266 | 103 . 85 27 . 79 181 116 30 19 . . 24 . . . 109 130 61 . 25 . 474 2 . . 62 128 63 . 638 910 Remotely . | . . . . . . . . . . . . . . . . . . . . . . . . . . . . . . . . Salvage Created 5434 | . . 130 63 . 18 143 242 . 42 . . 104 . 20 . . 224 88 . 25 . 987 . . . . 179 46 . 705 2418 Parts 266 | . . 10 13 . 3 14 23 . 1 . . 2 . 7 . . 10 6 . . . 43 . . . . 9 4 . 27 94 Haulers Intercepted 7 | . . 1 . . . 1 . . . . . 1 . . . . 1 . . . . . . . . . 1 . . 1 1 Recyclers Shooed . | . . . . . . . . . . . . . . . . . . . . . . . . . . . . . . . . Parts Field Recycled . | . . . . . . . . . . . . . . . . . . . . . . . . . . . . . . . . Retrieved Matter . | . . . . . . . . . . . . . . . . . . . . . . . . . . . . . . . . Parts Self-Destructed 23 | . . . . . . . . . . . 1 . 1 5 . . . 16 . . . . . . . . . . . . . Prevented 1 | . . . . . . . . . . . . . . . . . . . 1 . . . . . . . . . . . . Kills | -11 -10 -9 -9 -9 -8 -8 -7 -7 -7 -7 -6 -6 -6 -6 -6 -5 -5 -5 -5 -5 -4 -4 -4 -4 -4 -3 -3 -3 -3 -2 -2 ------- Run | Yrd Mat Mat Min Exi Min Mat Fac Low Low Zio Pro Fac Low Low Dat Pro Fac Upp Upp War Pro Fac Upp Upp Zhi Pro Res Arm Lab Res Tes Combat Hostiles Destroyed 73 | . . 2 5 . . 3 4 . 1 . . . . 3 . . 2 2 . 1 . 14 . . . . . 1 . 8 27 Melee 24 | . . 2 2 . . 3 4 . 1 . . . . . . . 2 2 . 1 . 6 . . . . . 1 . . . Guns 3 | . . . . . . . . . . . . . . . . . . . . . . . . . . . . . . . 3 Cannons 14 | . . . . . . . . . . . . . . . . . . . . . . 2 . . . . . . . 3 9 AOE 31 | . . . 3 . . . . . . . . . . 3 . . . . . . . 5 . . . . . . . 5 15 Classes Destroyed 18 | . . 4 . . 1 1 2 . 1 . . . . . . . . . . . . 1 . . . . . 1 . 4 3 Worker 10 | . . . . . . 2 . . . . . 1 . . . . . . . . . . . . . . . . . 3 4 Builder 7 | . . . . . 1 . . . . . . . . . . . . . . . . . . . . . . . . . 6 Tunneler 3 | . . 1 2 . . . . . . . . . . . . . . . . . . . . . . . . . . . . Hauler 7 | . . 1 . . . 1 . . . . . 1 . . . . 1 . . . . . . . . . 1 . . 1 1 Recycler 7 | . . . . . . . . . . . . . . . . . . . . . . 4 . . . . . . . 1 2 Operator 5 | . . 1 . . . 1 2 . . . . . . . . . . . . . . . . . . . 1 . . . . Watcher 10 | . . . . . . . 3 . . . . . . . . . 1 . . . . 4 . . . . 1 1 . . . Swarmer 28 | . . 2 5 . . 3 3 . . . . . . 3 . . . . . 1 . 11 . . . . . . . . . Saboteur 1 | . . . . . . . . . . . . . . . . . . . . . . . . . . . . 1 . . . Grunt 14 | . . . . . . . . . . . . . . . . . . . . . . . . . . . . . . . 14 Researcher 5 | . . . . . . . . . . . . . . . . . . . . . . . . . . . . . . . 5 Sentry 4 | . . . . . . . . . . . . . . . . . . . . . . . . . . . . . . 1 3 Demolisher 1 | . . . . . . . . . . . . . . . . . . . . . . . . . . . . . . 1 . Hunter 8 | . . . . . . . . . 1 . . . . . . . . . . . . . . . . . . . . 2 5 Programmer 12 | . . . . . . . 1 . . . . . . . . . 2 2 . . . 3 . . . . . . . 1 3 Q-Series 2 | . . . . . . . . . . . . . . . . . . . . . . . . . . . . . . . 2 Striker 2 | . . . . . . . . . . . . . . . . . . . . . . . . . . . . . . 1 1 Executioner 2 | . . . . . . . . . . . . . . . . . . . . . . . . . . . . . . 2 . Best Kill Streak 11 | . . 5 4 . 1 3 3 . 1 . . 1 . 3 . . 2 2 . 1 . 11 . . . . 2 1 . 7 8 Combat Bots Only 8 | . . 2 3 . . 3 3 . 1 . . . . 3 . . 2 2 . 1 . 8 . . . . . 1 . 7 6 Max Kills in Single Turn 5 | . . 1 2 . 1 1 1 . 1 . . 1 . 1 . . 1 1 . 1 . 3 . . . . 1 1 . 3 5 Gunslinging . | . . . . . . . . . . . . . . . . . . . . . . . . . . . . . . . . Exploded 3 | . . . 2 . . . . . . . . . . 1 . . . . . . . 3 . . . . . . . 3 3 Melee 1 | . . 1 1 . . 1 1 . 1 . . . . . . . 1 1 . 1 . 1 . . . . . 1 . . . Uniques/NPCs Destroyed . | . . . . . . . . . . . . . . . . . . . . . . . . . . . . . . . . Combat | -11 -10 -9 -9 -9 -8 -8 -7 -7 -7 -7 -6 -6 -6 -6 -6 -5 -5 -5 -5 -5 -4 -4 -4 -4 -4 -3 -3 -3 -3 -2 -2 -------- Run | Yrd Mat Mat Min Exi Min Mat Fac Low Low Zio Pro Fac Low Low Dat Pro Fac Upp Upp War Pro Fac Upp Upp Zhi Pro Res Arm Lab Res Tes Hostile Shots Fired 1165 | . . 10 20 . . 28 55 . 1 . . 9 16 6 . . 27 39 . 29 40 158 . 30 . 9 11 14 36 113 514 Missed 390 | . . 5 6 . . 10 26 . . . . 9 7 2 . . 12 16 . 16 20 56 . 22 . 3 9 9 15 19 128 Damage Taken 16922 | . 1 51 124 . . 250 353 . 14 . . 122 183 68 . . 362 438 . 278 394 2141 . 119 . 85 109 178 547 2111 8994 Core 2789 | . . 31 32 . . 37 109 . . . . 34 64 19 . . 128 97 . 27 122 509 . 23 . . . . 102 549 906 Absorbed by Shields . | . . . . . . . . . . . . . . . . . . . . . . . . . . . . . . . . Reduced by Siege Mode 72 | . . . . . . . . . . . . . . . . . . . . . . . . . . . . . . . 72 Redirected to Shielding 59 | . . . . . . . . . . . . . . . . . . . . . . . . . . . . . . . 59 Ignored by Resistances 323 | . . . . . . . . . . . . . . . . . . . . . . . . . . . . . . . 323 Regen/Repaired (Parts) 181 | . . . . . . . . . . . . . . . . . 66 . . 28 . 87 . . . . . . . . . Core Remaining (%) 81 | 100 100 . . . 84 93 . . . . 84 . . . . 86 . . . . 62 . . . . 53 . . 74 . . Volleys Fired 122 | . . . 4 . . . . . . . . . . 3 . . . . . . . 11 . . . . 1 3 . 10 90 Largest 3 | . . . 1 . . . . . . . . . . 1 . . . . . . . 2 . . . . 1 1 . 2 3 Hottest 360 | . . . 30 . . . . . . . . . . 33 . . . . . . . 120 . . . . 105 105 . 240 360 Shots Fired 228 | . . . 4 . . . . . . . . . . 3 . . . . . . . 11 . . . . 1 3 . 15 191 Gun 37 | . . . . . . . . . . . . . . . . . . . . . . 1 . . . . . . . . 36 Cannon 163 | . . . . . . . . . . . . . . . . . . . . . . 7 . . . . 1 2 . 12 141 Launcher 28 | . . . 4 . . . . . . . . . . 3 . . . . . . . 3 . . . . . 1 . 3 14 Special . | . . . . . . . . . . . . . . . . . . . . . . . . . . . . . . . . Kinetic 35 | . . . . . . . . . . . . . . . . . . . . . . 5 . . . . . . . . 30 Thermal 143 | . . . . . . . . . . . . . . . . . . . . . . 3 . . . . 1 2 . 12 125 Explosive 28 | . . . 4 . . . . . . . . . . 3 . . . . . . . 3 . . . . . 1 . 3 14 Electromagnetic 22 | . . . . . . . . . . . . . . . . . . . . . . . . . . . . . . . 22 Robot Hit Streak 24 | . . . 1 . . . . . . . . . . 1 . . . . . . . 1 . . . . . . . 9 24 Robot Miss Streak 4 | . . . . . . . . . . . . . . 2 . . . . . . . 3 . . . . . 1 . 4 4 Penetration Max 2 | . . . . . . . . . . . . . . . . . . . . . . . . . . . . . . . 2 Secondary Targets 1 | . . . . . . . . . . . . . . . . . . . . . . . . . . . . . . . 1 Max Gunslinging Chain 1 | . . . . . . . . . . . . . . . . . . . . . . . . . . . . . . . 1 Shots Hit Robots 255 | . . 6 8 . 1 13 19 . 2 . . 3 . 1 . . 12 8 . 4 . 24 . . . . 5 2 . 17 130 Core Hits 171 | . . 4 6 . 1 4 8 . 1 . . 1 . 5 . . 4 2 . 1 . 20 . . . . 3 1 . 18 92 Critical Kills 2 | . . . . . . . . . . . . . . . . . . . . 1 . 1 . . . . . . . . . Critical Parts Destroyed 2 | . . . . . . . . . . . . . . . . . . . . . . 2 . . . . . . . . . Critical Strikes 12 | . . . 1 . . . 2 . . . . . . . . . . . . 1 . 6 . . . . 1 . . 1 . Blast 1 | . . . . . . . . . . . . . . . . . . . . . . 1 . . . . . . . . . Smash 4 | . . . . . . . . . . . . . . . . . . . . 1 . 3 . . . . . . . . . Sever 4 | . . . 1 . . . 2 . . . . . . . . . . . . . . . . . . . . . . 1 . Impale 3 | . . . . . . . . . . . . . . . . . . . . . . 2 . . . . 1 . . . . Melee Attacks 282 | . . 10 14 . 2 40 50 . 2 1 6 13 . . . 1 45 15 1 4 . 38 . . 1 . 16 10 5 8 . Impact 42 | . . . . . . . . . . . . . . . . . 4 15 1 4 . 18 . . . . . . . . . Slashing 198 | . . 10 14 . 2 40 50 . 2 1 6 13 . . . 1 41 . . . . . . . . . . 5 5 8 . Piercing 42 | . . . . . . . . . . . . . . . . . . . . . . 20 . . 1 . 16 5 . . . Sneak Attacks 27 | . . 2 2 . 1 3 1 . . . . 3 . . . . 1 . . 2 . 5 . . . . 2 . . 5 . Combat Hostiles . | . . . . . . . . . . . . . . . . . . . . . . . . . . . . . . . . Follow-up Attacks 12 | . . . 4 . . 1 3 . 1 . 1 1 . . . . 1 . . . . . . . . . . . . . . Damage Inflicted 18246 | . 2 326 489 . 81 590 814 . 89 . . 240 . 197 . . 525 467 . 260 . 1934 . . . . 401 198 . 1741 9892 Guns 705 | . . . . . . . . . . . . . . . . . . . . . . . . . . . . . . . 705 Cannons 5178 | . . . . . . . . . . . . . . . . . . . . . . 187 . . . . . . . 494 4497 Explosions 6159 | . . . 194 . . . . . . . . . . 197 . . . . . . . 468 . . . . . . . 689 4611 Melee 6121 | . . 326 295 . 81 590 814 . 89 . . 240 . . . . 523 467 . 260 . 1279 . . . . 401 198 . 558 . Ramming 83 | . 2 . . . . . . . . . . . . . . . 2 . . . . . . . . . . . . . 79 Kinetic 656 | . . . . . . . . . . . . . . . . . . . . . . 51 . . . . . . . . 605 Thermal 6281 | . . . . . . . . . . . . . . . . . . . . . . 272 . . . . . . . 611 5398 Explosive 4811 | . . . 194 . . . . . . . . . . 197 . . . . . . . 332 . . . . . . . 572 3516 Electromagnetic 294 | . . . . . . . . . . . . . . . . . . . . . . . . . . . . . . . 294 Impact 1155 | . . . . . . . . . . . . . . . . . . 467 . 260 . 428 . . . . . . . . . Slashing 3516 | . . 326 295 . 81 590 814 . 89 . . 240 . . . . 523 . . . . . . . . . . . . 558 . Piercing 1450 | . . . . . . . . . . . . . . . . . . . . . . 851 . . . . 401 198 . . . Highest Corruption 37 | . . . . . . . 1 1 1 1 . . . . . . 2 6 6 6 2 14 14 14 14 14 . 1 2 3 37 Average Corruption 8 | . . . . . . . 1 1 1 1 . . . . . . 1 3 6 3 2 10 14 14 14 14 . 1 1 2 17 Corruption Purged 3 | . . . . . . . . . . . . . . . . . . . . . . . . . . . . 1 2 . . Corruption Blocked . | . . . . . . . . . . . . . . . . . . . . . . . . . . . . . . . . Effects 111 | . . . . . . . 1 . 2 . . . . . . . 2 5 1 . 4 19 3 4 3 3 . . 1 12 51 Message Errors 22 | . . . . . . . . . . . . . . . . . . 3 . . 2 3 1 1 1 1 . . . 2 8 Matter Fused 24 | . . . . . . . . . 1 . . . . . . . . 1 . . 2 2 1 1 2 . . . 1 2 11 Heat Flow Errors 13 | . . . . . . . 1 . . . . . . . . . 1 . . . . 3 . . . . . . . 1 7 Energy Discharges 18 | . . . . . . . . . . . . . . . . . 1 . 1 . . 3 . 1 . 1 . . . 2 9 Parts Rejected 1 | . . . . . . . . . . . . . . . . . . . . . . 1 . . . . . . . . . Data Loss (minor) 16 | . . . . . . . . . 1 . . . . . . . . 1 . . . 4 1 1 . 1 . . . 3 4 Data Loss (major) 1 | . . . . . . . . . . . . . . . . . . . . . . 1 . . . . . . . . . Misfires 1 | . . . . . . . . . . . . . . . . . . . . . . . . . . . . . . . 1 Alerts 2 | . . . . . . . . . . . . . . . . . . . . . . . . . . . . . . 2 . Misdirections 3 | . . . . . . . . . . . . . . . . . . . . . . 1 . . . . . . . . 2 Weapon Failures 10 | . . . . . . . . . . . . . . . . . . . . . . 1 . . . . . . . . 9 Overload Shots . | . . . . . . . . . . . . . . . . . . . . . . . . . . . . . . . . Overflow Damage 1706 | . . 34 44 . . 179 166 . . . . 41 . . . . 63 155 . 14 . 494 . . . . 30 47 . 56 383 Projectiles 174 | . . . . . . . . . . . . . . . . . . . . . . 11 . . . . . . . . 163 Explosions 301 | . . . . . . . . . . . . . . . . . . . . . . 86 . . . . . . . . 215 Melee 1231 | . . 34 44 . . 179 166 . . . . 41 . . . . 63 155 . 14 . 397 . . . . 30 47 . 56 5 Knockbacks 4 | . . . . . . . . . . . . . . . . . . . . . . 4 . . . . . . . . . Impact 3 | . . . . . . . . . . . . . . . . . . . . . . 3 . . . . . . . . . Kinetic 1 | . . . . . . . . . . . . . . . . . . . . . . 1 . . . . . . . . . Secondary . | . . . . . . . . . . . . . . . . . . . . . . . . . . . . . . . . Self-Inflicted Damage 394 | . 1 . 19 . . . . . . . . . . 11 . . . . . . . 102 . . . . . . . . 261 Shots 9 | . . . 1 . . . . . . . . . . 1 . . . . . . . 3 . . . . . . . . 4 Rammed 10 | . 1 . . . . . . . . . . . . . . . 2 . . . . . . . . . . . . . 7 Targets Rammed 11 | . 1 . . . . . . . . . . . . . . . 2 . . . . . . . . . . . . . 8 Kicked 1 | . . . . . . . . . . . . . . . . . . . . . . . . . . . . . . . 1 Crushed . | . . . . . . . . . . . . . . . . . . . . . . . . . . . . . . . . Highest Temperature 342 | . . . . . . 31 169 54 51 21 . 167 279 53 82 73 275 4 . 302 212 312 . . . . 34 88 . 88 342 Average Temperature 57 | . . . . . . 10 37 17 17 10 . 39 107 20 38 31 43 4 . 93 78 109 . . . . 20 40 . 88 105 Received Heat Transfer 906 | . . 15 . . . 72 123 . . . . . 33 . . . 9 . . . 90 33 . . . 9 9 9 . 36 468 Effects 5 | . . . . . . . . . . . . . 1 . . . . . . . . 2 . . . . . . . . 2 Energy Bleed 2 | . . . . . . . . . . . . . 1 . . . . . . . . . . . . . . . . . 1 Interference 3 | . . . . . . . . . . . . . . . . . . . . . . 2 . . . . . . . . 1 Siege Activations 1 | . . . . . . . . . . . . . . . . . . . . . . . . . . . . . . . 1 Total Turns 49 | . . . . . . . . . . . . . . . . . . . . . . . . . . . . . . . 49 Longest Duration 49 | . . . . . . . . . . . . . . . . . . . . . . . . . . . . . . . 49 Robots Corrupted 3 | . . . . . . . . . . . . . . . . . . . . . . 1 . . . . . . . . 2 Combat Hostiles 1 | . . . . . . . . . . . . . . . . . . . . . . 1 . . . . . . . . . Parts Fried 3 | . . . . . . . . . . . . . . . . . . . . . . . . . . . . . . . 3 Impact Corruptions 12 | . . . . . . . . . . . . . . . . . . 5 . 1 . 4 . . . . . . . . 2 Robots Melted . | . . . . . . . . . . . . . . . . . . . . . . . . . . . . . . . . Combat Hostiles . | . . . . . . . . . . . . . . . . . . . . . . . . . . . . . . . . Parts Melted 5 | . . . . . . . . . . . . . . . . . . . . . . . . . . . . . . . 5 Heat Transferred 5400 | . . . . . . . . . . . . . . . . . . . . . . 211 . . . . . . . 365 4824 Parts Sabotaged 5 | . . . . . . . . . . . . . . . . . . . . . . . . . . . . 5 . . . Parts Stolen . | . . . . . . . . . . . . . . . . . . . . . . . . . . . . . . . . Parts Stripped . | . . . . . . . . . . . . . . . . . . . . . . . . . . . . . . . . Power Chain Reactions 2 | . . . . . . . . . . . . . . . . . . . . . . . . . . . . . . . 2 Alert | -11 -10 -9 -9 -9 -8 -8 -7 -7 -7 -7 -6 -6 -6 -6 -6 -5 -5 -5 -5 -5 -4 -4 -4 -4 -4 -3 -3 -3 -3 -2 -2 ------- Run | Yrd Mat Mat Min Exi Min Mat Fac Low Low Zio Pro Fac Low Low Dat Pro Fac Upp Upp War Pro Fac Upp Upp Zhi Pro Res Arm Lab Res Tes Peak Influence 1029 | . 21 174 362 . 5 448 668 . . . . 685 . . . . 460 . . . . 568 . . . . 164 413 . 324 1029 Initial 609 | . . 8 73 . . 1 203 . . . . 609 . . . . 300 . . . . 50 . . . . . 86 . . 97 Average 279 | . 6 72 241 . 1 200 457 . . . . 618 . . . . 324 . . . . 319 . . . . 73 167 . 102 386 Maximum Alert Level 3 | . . . 1 . . 2 2 . . . . 2 . . . . 2 . . . . 2 . . . . . 2 . 1 3 Low Security (%) 39 | 100 100 100 40 . 100 46 . . . . . . . . . . 17 . . . . 15 . . . . 100 65 . 75 24 Level 1 35 | . . . 59 . . 44 35 . . . . . . . . . 59 . . . . 57 . . . . . 30 . 24 34 Level 2 22 | . . . . . . 8 64 . . . . 100 . . . . 22 . . . . 26 . . . . . 4 . . 26 Level 3 2 | . . . . . . . . . . . . . . . . . . . . . . . . . . . . . . . 13 Level 4 . | . . . . . . . . . . . . . . . . . . . . . . . . . . . . . . . . Level 5 . | . . . . . . . . . . . . . . . . . . . . . . . . . . . . . . . . High Security . | . . . . . . . . . . . . . . . . . . . . . . . . . . . . . . . . Max Security . | . . . . . . . . . . . . . . . . . . . . . . . . . . . . . . . . Squads Dispatched 34 | . . 1 . . . 5 3 . . . . 1 . . . . 2 . . . . . . 1 . . 2 1 . 4 14 Investigation 3 | . . 1 . . . 1 1 . . . . . . . . . . . . . . . . . . . . . . . . Extermination 7 | . . . . . . . 1 . . . . . . . . . 1 . . . . . . . . . 1 1 . . 3 Reinforcement 15 | . . . . . . 2 1 . . . . 1 . . . . 1 . . . . . . . . . 1 . . 1 8 Assault 2 | . . . . . . 1 . . . . . . . . . . . . . . . . . 1 . . . . . . . Garrison 4 | . . . . . . 1 . . . . . . . . . . . . . . . . . . . . . . . . 3 Intercept 3 | . . . . . . . . . . . . . . . . . . . . . . . . . . . . . . 3 . Searches Triggered 2 | . . . . . . . 1 . . . . . . . . . 1 . . . . . . . . . . . . . . Construction Impeded 2 | . . . . . . . . . . . . . . . . . . . . . . . . . . . . . . . 2 Haulers Reinforced 4 | . . . . . . . . . . . . 1 . . . . 1 . . . . . . . . . . . . 1 1 Active Scanning Responses . | . . . . . . . . . . . . . . . . . . . . . . . . . . . . . . . . Cargo Convoy Interrupts . | . . . . . . . . . . . . . . . . . . . . . . . . . . . . . . . . Stealth | -11 -10 -9 -9 -9 -8 -8 -7 -7 -7 -7 -6 -6 -6 -6 -6 -5 -5 -5 -5 -5 -4 -4 -4 -4 -4 -3 -3 -3 -3 -2 -2 --------- Run | Yrd Mat Mat Min Exi Min Mat Fac Low Low Zio Pro Fac Low Low Dat Pro Fac Upp Upp War Pro Fac Upp Upp Zhi Pro Res Arm Lab Res Tes Distress Signals 28 | . . 1 . . . 4 1 . . . 1 1 . . . . . . . 1 . 2 . . . . 2 1 . 12 2 Communications Jammed . | . . . . . . . . . . . . . . . . . . . . . . . . . . . . . . . . Distress Signals . | . . . . . . . . . . . . . . . . . . . . . . . . . . . . . . . . Times Spotted 294 | . . 14 13 . . 24 27 . 1 . 4 3 6 5 . 2 12 3 . 20 13 34 . 16 . 1 14 13 1 22 46 Peak Tracking Total 17 | . . 9 6 . . 10 9 . 1 . 2 2 6 2 . 2 5 2 . 17 10 9 . 13 . 1 17 12 1 9 9 Tactical Retreats 48 | . . 1 3 . . 5 5 . . . 1 . 1 1 . . 2 . . 1 3 9 . 4 . . 2 5 . 4 1 Traps | -11 -10 -9 -9 -9 -8 -8 -7 -7 -7 -7 -6 -6 -6 -6 -6 -5 -5 -5 -5 -5 -4 -4 -4 -4 -4 -3 -3 -3 -3 -2 -2 ------- Run | Yrd Mat Mat Min Exi Min Mat Fac Low Low Zio Pro Fac Low Low Dat Pro Fac Upp Upp War Pro Fac Upp Upp Zhi Pro Res Arm Lab Res Tes Traps Triggered 8 | . . . . . . 1 2 . . . . 1 . . . . 1 . . . . . . . . . . 1 . . 2 Indirectly . | . . . . . . . . . . . . . . . . . . . . . . . . . . . . . . . . Trap Hack Attempts . | . . . . . . . . . . . . . . . . . . . . . . . . . . . . . . . . Triggered . | . . . . . . . . . . . . . . . . . . . . . . . . . . . . . . . . Disarmed . | . . . . . . . . . . . . . . . . . . . . . . . . . . . . . . . . Reprogrammed . | . . . . . . . . . . . . . . . . . . . . . . . . . . . . . . . . Reused . | . . . . . . . . . . . . . . . . . . . . . . . . . . . . . . . . Traps Extracted . | . . . . . . . . . . . . . . . . . . . . . . . . . . . . . . . . Installed . | . . . . . . . . . . . . . . . . . . . . . . . . . . . . . . . . Triggered 14 | . . . . . . . . . 3 . 2 . . . . . . 2 1 6 . . . . . . . . . . . Machines | -11 -10 -9 -9 -9 -8 -8 -7 -7 -7 -7 -6 -6 -6 -6 -6 -5 -5 -5 -5 -5 -4 -4 -4 -4 -4 -3 -3 -3 -3 -2 -2 ---------- Run | Yrd Mat Mat Min Exi Min Mat Fac Low Low Zio Pro Fac Low Low Dat Pro Fac Upp Upp War Pro Fac Upp Upp Zhi Pro Res Arm Lab Res Tes Machines Disabled 21 | . . . . . . . . . . . . . . . . . . . . . . 3 . . 1 . . 5 1 . 11 Max in Single Turn 3 | . . . . . . . . . . . . . . . . . . . . . . 3 . . 1 . . 1 1 . 1 Garrison Access 3 | . . . . . . 1 . . . . . 1 . . . . . . . . . 1 . . . . . . . . . Energy Cycler 1 | . . . . . . . . . . . . . . . . . . . . . . . . . . . . 1 . . . Machines Repaired . | . . . . . . . . . . . . . . . . . . . . . . . . . . . . . . . . Machines Dismantled . | . . . . . . . . . . . . . . . . . . . . . . . . . . . . . . . . Machines Sabotaged . | . . . . . . . . . . . . . . . . . . . . . . . . . . . . . . . . Overloaded Fab Kills . | . . . . . . . . . . . . . . . . . . . . . . . . . . . . . . . . Hacking | -11 -10 -9 -9 -9 -8 -8 -7 -7 -7 -7 -6 -6 -6 -6 -6 -5 -5 -5 -5 -5 -4 -4 -4 -4 -4 -3 -3 -3 -3 -2 -2 --------- Run | Yrd Mat Mat Min Exi Min Mat Fac Low Low Zio Pro Fac Low Low Dat Pro Fac Upp Upp War Pro Fac Upp Upp Zhi Pro Res Arm Lab Res Tes Machines Accessed 62 | . 1 3 . 1 . 6 4 1 1 1 . 4 . . 2 . 8 . . 3 . 7 1 . 3 . 1 6 2 3 4 Terminals 33 | . 1 3 . . . 6 2 . . . . 3 . . . . 3 . . . . 3 . . . . 1 5 . 3 3 Fabricators 3 | . . . . . . . 1 . . . . . . . . . 1 . . . . . . . . . . 1 . . . Repair Stations 3 | . . . . . . . 1 . . . . . . . . . 1 . . . . 1 . . . . . . . . . Recycling Units 2 | . . . . . . . . . . . . . . . . . 2 . . . . . . . . . . . . . . Scanalyzers 4 | . . . . . . . . . . . . . . . . . 1 . . . . 2 . . . . . . . . 1 Garrison Access 2 | . . . . . . . . . . . . 1 . . . . . . . . . 1 . . . . . . . . . Total Hacks 212 | . 2 10 . 1 . 14 12 1 1 6 . 14 . . 20 . 37 . . 9 . 18 1 . 13 . 2 15 20 7 9 Successful 156 | . 1 2 . 1 . 6 5 1 1 6 . 5 . . 20 . 24 . . 9 . 17 1 . 13 . 1 12 20 6 5 Failed 56 | . 1 8 . . . 8 7 . . . . 9 . . . . 13 . . . . 1 . . . . 1 3 . 1 4 Catastrophic 14 | . . 1 . . . 3 5 . . . . 1 . . . . 3 . . . . . . . . . . . . . 1 Database Lockouts . | . . . . . . . . . . . . . . . . . . . . . . . . . . . . . . . . Manual 65 | . 2 8 . . . 3 7 . . 1 . 10 . . . . 17 . . 1 . 2 . . . . 1 7 1 3 2 Terminals 102 | . 2 10 . . . 14 5 . . . . 12 . . . . 22 . . . . 10 . . . . 2 12 . 7 6 Fabricators 10 | . . . . . . . 5 . . . . . . . . . 2 . . . . . . . . . . 3 . . . Repair Stations 12 | . . . . . . . 2 . . . . . . . . . 8 . . . . 2 . . . . . . . . . Recycling Units 3 | . . . . . . . . . . . . . . . . . 3 . . . . . . . . . . . . . . Scanalyzers 10 | . . . . . . . . . . . . . . . . . 2 . . . . 5 . . . . . . . . 3 Garrison Access 3 | . . . . . . . . . . . . 2 . . . . . . . . . 1 . . . . . . . . . Terminal Hacks 122 | . 1 1 . 1 . 5 1 1 1 6 . 4 . . 20 . 11 . . 9 . 9 1 . 13 . 1 8 20 6 3 Record 41 | . . . . 1 . . . . . . . . . . 6 . . . . 8 . 1 . . 5 . . . 20 . . Part Schematic 17 | . . . . . . . . . . 6 . . . . 11 . . . . . . . . . . . . . . . . Robot Analysis 7 | . . . . . . . . . . . . . . . . . 1 . . . . 2 . . 4 . . . . . . Prototype ID Bank 12 | . . 1 . . . 1 . . . . . . . . 3 . 1 . . . . 1 . . 4 . . . . 1 . Open Door 4 | . . . . . . . . 1 1 . . . . . . . . . . 1 . . 1 . . . . . . . . Level Access Points 2 | . . . . . . . . . . . . . . . . . 1 . . . . . . . . . . 1 . . . Branch Access Points 3 | . . . . . . . . . . . . . . . . . 1 . . . . 1 . . . . . . . 1 . Emergency Access Points 3 | . . . . . . 1 . . . . . . . . . . 1 . . . . 1 . . . . . . . . . Machine Index 1 | . . . . . . . . . . . . . . . . . 1 . . . . . . . . . . . . . . Terminal Index 2 | . . . . . . . 1 . . . . . . . . . 1 . . . . . . . . . . . . . . Alert Level 3 | . . . . . . . . . . . . 1 . . . . . . . . . 1 . . . . . . . . 1 Unreport Threat 3 | . . . . . . . . . . . . 1 . . . . . . . . . . . . . . . 1 . . 1 Security Status 1 | . . . . . . . . . . . . . . . . . 1 . . . . . . . . . . . . . . Recall Reinforcements 2 | . . . . . . 1 . . . . . . . . . . . . . . . . . . . . . . . 1 . Hauler Manifests 4 | . . . . . . 1 . . . . . . . . . . 1 . . . . . . . . . . 1 . 1 . Zone Layout 17 | . 1 . . . . 1 . . . . . 2 . . . . 2 . . . . 2 . . . . 1 5 . 2 1 Fabricator Hacks 4 | . . . . . . . 1 . . . . . . . . . 1 . . . . . . . . . . 2 . . . Network Status 3 | . . . . . . . 1 . . . . . . . . . 1 . . . . . . . . . . 1 . . . Build 1 | . . . . . . . . . . . . . . . . . . . . . . . . . . . . 1 . . . Repair Station Hacks 7 | . . . . . . . 1 . . . . . . . . . 4 . . . . 2 . . . . . . . . . Scan Component 4 | . . . . . . . 1 . . . . . . . . . 2 . . . . 1 . . . . . . . . . Repair 3 | . . . . . . . . . . . . . . . . . 2 . . . . 1 . . . . . . . . . Recycling Unit Hacks 3 | . . . . . . . . . . . . . . . . . 3 . . . . . . . . . . . . . . Report Inventory 2 | . . . . . . . . . . . . . . . . . 2 . . . . . . . . . . . . . . Retrieve Components 1 | . . . . . . . . . . . . . . . . . 1 . . . . . . . . . . . . . . Scanalyzer 9 | . . . . . . . . . . . . . . . . . 2 . . . . 5 . . . . . . . . 2 Insert Component 5 | . . . . . . . . . . . . . . . . . 1 . . . . 2 . . . . . . . . 2 Analyze 4 | . . . . . . . . . . . . . . . . . 1 . . . . 3 . . . . . . . . . Garrison Access Hacks 2 | . . . . . . . . . . . . 1 . . . . . . . . . 1 . . . . . . . . . Seal Access 2 | . . . . . . . . . . . . 1 . . . . . . . . . 1 . . . . . . . . . Unauthorized Hacks 9 | . . 1 . . . 1 2 . . . . . . . . . 3 . . . . . . . . . . 2 . . . Terminals 5 | . . 1 . . . 1 1 . . . . . . . . . 1 . . . . . . . . . . 1 . . . Track 1 | . . . . . . . . . . . . . . . . . . . . . . . . . . . . 1 . . . Assimilate 1 | . . . . . . . 1 . . . . . . . . . . . . . . . . . . . . . . . . Operators 3 | . . 1 . . . 1 . . . . . . . . . . 1 . . . . . . . . . . . . . . Fabricators 3 | . . . . . . . 1 . . . . . . . . . 1 . . . . . . . . . . 1 . . . Liberate 3 | . . . . . . . 1 . . . . . . . . . 1 . . . . . . . . . . 1 . . . Repair Stations 1 | . . . . . . . . . . . . . . . . . 1 . . . . . . . . . . . . . . Mechanics 1 | . . . . . . . . . . . . . . . . . 1 . . . . . . . . . . . . . . Recycling Units . | . . . . . . . . . . . . . . . . . . . . . . . . . . . . . . . . Scanalyzers . | . . . . . . . . . . . . . . . . . . . . . . . . . . . . . . . . Garrison Access . | . . . . . . . . . . . . . . . . . . . . . . . . . . . . . . . . Data Cores Recovered 2 | . . . . . . . 1 . . . . . . . . . . . . . . . . . . . 1 . . . . Used 1 | . . . . . . . . . . . . . . . . . . . . . . . . . . . 1 . . . . Hacking Detections 42 | . 1 3 . . . 6 4 . . . . 3 . . . . 6 . . . . 5 . . . . 1 6 . 3 4 Full Trace Events 2 | . . 1 . . . . 1 . . . . . . . . . . . . . . . . . . . . . . . . Feedback Events . | . . . . . . . . . . . . . . . . . . . . . . . . . . . . . . . . Feedback Blocked . | . . . . . . . . . . . . . . . . . . . . . . . . . . . . . . . . Robot Schematics Acquired 9 | . . . . . . . . . . 3 . . . . . . . . . . . . . . . . . . . . 6 Robots Built 3 | . . . . . . . . . . . . . . . . . . . . . . . . . . . . 3 . . . Authchips . | . . . . . . . . . . . . . . . . . . . . . . . . . . . . . . . . Time 187 | . . . . . . . . . . . . . . . . . . . . . . . . . . . . 187 . . . Total Robot Build Rating 21 | . . . . . . . . . . . . . . . . . . . . . . . . . . . . 21 . . . Part Schematics Acquired 49 | . . . . . . . . . . 22 . . . . 11 . 1 . . . . 2 . . . . . . . . 13 Parts Built . | . . . . . . . . . . . . . . . . . . . . . . . . . . . . . . . . Authchips . | . . . . . . . . . . . . . . . . . . . . . . . . . . . . . . . . Time . | . . . . . . . . . . . . . . . . . . . . . . . . . . . . . . . . Total Part Build Rating . | . . . . . . . . . . . . . . . . . . . . . . . . . . . . . . . . Parts Repaired 3 | . . . . . . . . . . . . . . . . . 2 . . . . 1 . . . . . . . . . Time 163 | . . . . . . . . . . . . . . . . . 55 . . . . 108 . . . . . . . . . Parts Recycled . | . . . . . . . . . . . . . . . . . . . . . . . . . . . . . . . . Recycled Matter . | . . . . . . . . . . . . . . . . . . . . . . . . . . . . . . . . Retrieved Matter . | . . . . . . . . . . . . . . . . . . . . . . . . . . . . . . . . Retrieved Components 3 | . . . . . . . . . . . . . . . . . 3 . . . . . . . . . . . . . . Parts Scanalyzed 3 | . . . . . . . . . . . . . . . . . 1 . . . . 2 . . . . . . . . . Part Schematics Acquired 3 | . . . . . . . . . . . . . . . . . 1 . . . . 2 . . . . . . . . . Parts Damaged . | . . . . . . . . . . . . . . . . . . . . . . . . . . . . . . . . Bothacking | -11 -10 -9 -9 -9 -8 -8 -7 -7 -7 -7 -6 -6 -6 -6 -6 -5 -5 -5 -5 -5 -4 -4 -4 -4 -4 -3 -3 -3 -3 -2 -2 ------------ Run | Yrd Mat Mat Min Exi Min Mat Fac Low Low Zio Pro Fac Low Low Dat Pro Fac Upp Upp War Pro Fac Upp Upp Zhi Pro Res Arm Lab Res Tes Used RIF Installer . | . . . . . . . . . . . . . . . . . . . . . . . . . . . . . . . . Robots Hacked . | . . . . . . . . . . . . . . . . . . . . . . . . . . . . . . . . Non-combat . | . . . . . . . . . . . . . . . . . . . . . . . . . . . . . . . . Combat . | . . . . . . . . . . . . . . . . . . . . . . . . . . . . . . . . Robot Hacks Applied . | . . . . . . . . . . . . . . . . . . . . . . . . . . . . . . . . Relay Couplers Released 3 | . . . . . . 3 . . . . . . . . . . . . . . . . . . . . . . . . . Machine Destruction 3 | . . . . . . 3 . . . . . . . . . . . . . . . . . . . . . . . . . Fabnet Peak Effective % . | . . . . . . . . . . . . . . . . . . . . . . . . . . . . . . . . Robots Rewired 11 | . . . . . . . . . . . . 1 . . . . . . . 5 . . . . . . . 4 . . 1 Allies Hacked 5 | . . . . . . . . . . . . . . . . . . . . 3 . . . . . . . 2 . . . Hacks Repelled . | . . . . . . . . . . . . . . . . . . . . . . . . . . . . . . . . Allies | -11 -10 -9 -9 -9 -8 -8 -7 -7 -7 -7 -6 -6 -6 -6 -6 -5 -5 -5 -5 -5 -4 -4 -4 -4 -4 -3 -3 -3 -3 -2 -2 -------- Run | Yrd Mat Mat Min Exi Min Mat Fac Low Low Zio Pro Fac Low Low Dat Pro Fac Upp Upp War Pro Fac Upp Upp Zhi Pro Res Arm Lab Res Tes Total Allies 17 | . . . . . . . 3 . . . . 1 . . . . . . . 5 . . . . . . . 7 . . 1 Largest Group 5 | . . . . . . . 3 . . . . 1 . . . . . . . 5 . . . . . . . 4 . . 1 Highest-Rated Group 288 | . . . . . . . 48 . . . . 34 . . . . . . . 288 . . . . . . . 224 . . 51 Highest-Rated Ally 65 | . . . . . . . 16 . . . . 34 . . . . . . . 65 . . . . . . . 56 . . 51 Total Orders . | . . . . . . . . . . . . . . . . . . . . . . . . . . . . . . . . Ally Attacks 73 | . . . . . . . 17 . . . . 10 . . . . . . . 2 . . . . . . . 42 . . 2 Total Damage 2206 | . . . . . . . 111 . . . . 657 . . . . . . . 81 . . . . . . . 1236 . . 121 Kills 11 | . . . . . . . 1 . . . . 6 . . . . . . . . . . . . . . . 4 . . . Allies Corrupted 2 | . . . . . . . . . . . . . . . . . . . . . . . . . . . . 1 . . 1 Allies Melted 1 | . . . . . . . . . . . . . . . . . . . . . . . . . . . . . . 1 . Intel | -11 -10 -9 -9 -9 -8 -8 -7 -7 -7 -7 -6 -6 -6 -6 -6 -5 -5 -5 -5 -5 -4 -4 -4 -4 -4 -3 -3 -3 -3 -2 -2 ------- Run | Yrd Mat Mat Min Exi Min Mat Fac Low Low Zio Pro Fac Low Low Dat Pro Fac Upp Upp War Pro Fac Upp Upp Zhi Pro Res Arm Lab Res Tes Robot Analysis Total 7 | . . . . . . . . . . . . . . . . . 1 . . . . 2 . . 4 . . . . . . Derelict Logs Recovered 13 | . . . 2 . . . . 1 1 1 . . 2 1 . 2 . 1 2 . . . . . . . . . . . . Drone Launches . | . . . . . . . . . . . . . . . . . . . . . . . . . . . . . . . . Drone Recoveries . | . . . . . . . . . . . . . . . . . . . . . . . . . . . . . . . . Exploration | -11 -10 -9 -9 -9 -8 -8 -7 -7 -7 -7 -6 -6 -6 -6 -6 -5 -5 -5 -5 -5 -4 -4 -4 -4 -4 -3 -3 -3 -3 -2 -2 ------------- Run | Yrd Mat Mat Min Exi Min Mat Fac Low Low Zio Pro Fac Low Low Dat Pro Fac Upp Upp War Pro Fac Upp Upp Zhi Pro Res Arm Lab Res Tes Turns Passed 7389 | 35 76 99 256 48 23 347 448 106 86 233 275 232 109 103 40 137 507 324 58 361 108 596 47 117 61 62 260 250 80 826 1079 Spaces Moved 14251 | 63 143 136 560 130 55 717 840 294 233 865 643 627 379 321 160 433 930 823 224 932 310 1032 195 381 167 264 405 541 160 852 436 Core 399 | 63 59 . . . . . . . . . . . . . . . . . . . . 2 . . . . . . . 224 51 Treads 288 | . . . . . . . . . . . . . . . . . . . . . . . . . . . . . . 88 200 Legs 185 | . . . . . . . . . . . . . . . . . . . . . . . . . . . . . . . 185 Wheels . | . . . . . . . . . . . . . . . . . . . . . . . . . . . . . . . . Hover 145 | . . . . . . . . . . . . . . . . . . . . . . . . . . . . . . 145 . Flight 13234 | . 84 136 560 130 55 717 840 294 233 865 643 627 379 321 160 433 930 823 224 932 310 1030 195 381 167 264 405 541 160 395 . Fastest Speed 13 | 50 37 37 37 37 37 27 23 23 23 23 26 21 21 21 21 21 21 24 24 22 22 13 23 23 22 22 22 22 23 30 50 Average Speed 32 | 50 42 37 37 37 37 30 23 23 23 25 26 22 21 21 21 21 23 24 24 23 22 23 23 23 22 22 22 22 29 81 147 Slowest Speed 400 | 50 50 37 107 37 37 37 23 23 23 26 26 26 21 91 21 21 24 96 24 98 23 400 23 23 23 23 22 28 108 232 235 Overloaded Moves . | . . . . . . . . . . . . . . . . . . . . . . . . . . . . . . . . Propulsion Burnouts . | . . . . . . . . . . . . . . . . . . . . . . . . . . . . . . . . Robots Hopped 23 | . . . 2 . . . 6 . . . . 1 1 . . . . . . 4 . 2 . 2 . . 2 3 . . . Cave-ins Triggered . | . . . . . . . . . . . . . . . . . . . . . . . . . . . . . . . . Teleports 2 | . . . . . . . . . . . . . . . . . . . . . . . . . . . . 1 1 . . Exploration Rate (%) 48 | 3 22 19 81 49 21 58 27 57 31 83 77 16 62 60 74 70 17 78 44 89 59 25 42 53 62 47 11 43 96 24 44 Regions Visited 31 Branch Regions 22 Pre-discovered Areas 11 | . . . 2 1 . . . . . 1 . . . . 1 1 . 1 1 . . . . . 3 . . . . . . Known Exits Taken 13 | . . . . . . 1 . . . . . . 1 . . . 1 . . . 1 1 1 1 1 1 1 1 1 1 . Unknown Exits Taken 18 | 1 1 1 1 1 1 . 1 1 1 1 1 1 . 1 1 1 . 1 1 1 . . . . . . . . . . . Scrap Searched 21 | . . . 1 . 1 . . 3 . 5 1 . . 2 . 4 . 2 . . . . . 1 . 1 . . . . . Spaces Dug 108 | . . 3 . . . 14 18 . . . 2 10 . . . 1 12 3 . . . 5 . . . . 11 6 . 1 22 Terrain Destroyed 510 | . . 3 45 . . 14 18 . . . 2 10 . 25 . 1 12 3 . . . 36 . . . . 11 17 . 37 276 Melee 83 | . . 3 . . . 14 18 . . . 2 10 . . . 1 12 3 . . . 5 . . . . 10 4 . 1 . Projectile 30 | . . . . . . . . . . . . . . . . . . . . . . 3 . . . . 1 2 . 4 20 AOE 397 | . . . 45 . . . . . . . . . . 25 . . . . . . . 28 . . . . . 11 . 32 256 Terrain Rammed . | . . . . . . . . . . . . . . . . . . . . . . . . . . . . . . . . Walls Destroyed . | . . . . . . . . . . . . . . . . . . . . . . . . . . . . . . . . Machines Disabled . | . . . . . . . . . . . . . . . . . . . . . . . . . . . . . . . . Actions | -11 -10 -9 -9 -9 -8 -8 -7 -7 -7 -7 -6 -6 -6 -6 -6 -5 -5 -5 -5 -5 -4 -4 -4 -4 -4 -3 -3 -3 -3 -2 -2 --------- Run | Yrd Mat Mat Min Exi Min Mat Fac Low Low Zio Pro Fac Low Low Dat Pro Fac Upp Upp War Pro Fac Upp Upp Zhi Pro Res Arm Lab Res Tes Total 16364 | 64 157 169 581 129 55 794 1019 331 265 873 742 704 406 352 165 477 1176 916 225 1060 348 1289 196 406 186 266 539 642 186 948 698 Wait 1119 | . . 14 9 . . 15 95 34 26 4 95 36 29 21 6 34 172 73 1 86 36 151 . 26 2 3 110 16 2 1 22 Move 14176 | 62 142 135 555 129 54 716 828 293 232 864 642 624 376 320 159 432 930 822 223 923 309 1027 194 376 166 263 400 534 159 851 436 Hop 21 | . . . 2 . . . 5 . . . . 1 1 . . . . . . 4 . 2 . 2 . . 2 2 . . . Pick Up 94 | . 8 2 . . . 5 10 1 2 2 . 5 . 3 . 2 9 . . 4 . 7 1 . 1 . 4 1 . 6 21 Fast Attach 162 | 2 3 3 . . . 5 2 . . . . . . . . 2 6 . . 10 . 25 . . 7 . 1 18 8 43 27 Attach 55 | . 1 1 . . . 3 2 . . . . 2 . . . 1 2 2 . . . 8 . . . . 3 1 2 3 24 Detach 49 | . . 1 . . . 2 . . . . . . . . . . . . . 3 . 5 . . . . 1 2 5 4 26 Swap 59 | . . . 2 . . 5 8 2 1 . . 3 . 2 . 1 5 4 . 4 1 3 . 2 2 . . 2 . 1 11 Drop 141 | . 2 3 . . . 9 5 1 3 2 . 4 . 3 . 4 13 . . 9 2 12 1 . 7 . 1 11 5 21 23 Fire 122 | . . . 4 . . . . . . . . . . 3 . . . . . . . 11 . . . . 1 3 . 10 90 Melee 253 | . . 10 9 . 1 34 43 . 1 1 5 12 . . . 1 38 15 1 4 . 38 . . 1 . 16 10 5 8 . Ram 8 | . 1 . . . . . . . . . . . . . . . 1 . . . . . . . . . . . . . 6 Kick 1 | . . . . . . . . . . . . . . . . . . . . . . . . . . . . . . . 1 Crush 2 | . . . . . . . . . . . . . . . . . . . . . . . . . . . . . . . 2 Escape Stasis 47 | . . . . . . . 21 . . . . . . . . . . . . . . . . . . . . 19 . . 7 Rewire 55 | . . . . . . . . . . . . 17 . . . . . . . 13 . . . . . . . 23 . . 2 Trap . | . . . . . . . . . . . . . . . . . . . . . . . . . . . . . . . . Miscellaneous . | . . . . . . . . . . . . . . . . . . . . . . . . . . . . . . . . Route ------- -11/Scrapyard -10/Materials (discovered 2 exits: *Mat / [*Min]) -9/Materials -9/Mines (discovered 3 exits: *Mat x2 / *Exi) -9/Exiles (discovered 2 exits: [*Min x2]) -8/Mines -8/Materials -7/Factory -7/Lower Caves -7/Lower Caves -7/Zion -6/Proximity Caves -6/Factory -6/Lower Caves -6/Lower Caves -6/Data Miner -5/Proximity Caves -5/Factory (discovered 8 exits: *Fac x4 / *Upp x2 / Ext x2) -5/Upper Caves -5/Upper Caves -5/Warlord -4/Proximity Caves -4/Factory (discovered 3 exits: *Res / *Upp x2) -4/Upper Caves -4/Upper Caves -4/Zhirov -3/Proximity Caves -3/Research -3/Armory (discovered 3 exits: *Res x2 / *Lab) -3/Lab -2/Research (discovered 3 exits: [*Acc] / *Tes x2) -2/Testing History --------- Turn | Location | Event 3 | -11/Scrapyard | Discovered new exit (range 16) 36 | -11/Scrapyard | Entered Materials 50 | -10/Materials | Discovered new exit (range 15) 64 | -10/Materials | Discovered new exit (range 13) 112 | -10/Materials | Entered another Materials area 112 | -9/Materials | Evolved 2 slots: Propulsion x1, Utility x1 209 | -9/Materials | Discovered new exit (range 6) 211 | -9/Materials | Entered Mines 268 | -9/Mines | Learned location of Storage (-9) 303 | -9/Mines | Build established: Mutant 372 | -9/Mines | Discovered new exit (range 6) 407 | -9/Mines | Discovered new exit (range 5) 466 | -9/Mines | Deemed a non-threat by the Exiles lab entrance 466 | -9/Mines | Discovered new exit (range 5) 467 | -9/Mines | Entered Exiles 472 | -9/Exiles | Discovered new exit (range 15) 477 | -9/Exiles | Met 8R-AWN 482 | -9/Exiles | Met EX-HEX 497 | -9/Exiles | Met EX-DEC 499 | -9/Exiles | Learned location of Zion (-7) 512 | -9/Exiles | Discovered new exit (range 10) 515 | -9/Exiles | Entered Mines 530 | -8/Mines | Discovered new exit (range 14) 538 | -8/Mines | Entered Materials 538 | -8/Materials | Evolved 2 slots: Propulsion x2 539 | -8/Materials | Identified exit to Factory 808 | -8/Materials | Garrison activated, responded to threat 876 | -8/Materials | Build established: Sprinter 885 | -8/Materials | Entered Factory 885 | -7/Factory | Evolved 2 slots: Propulsion x1, Utility x1 1285 | -7/Factory | Search patrols dispatched 1325 | -7/Factory | Discovered new exit (range 15) 1333 | -7/Factory | Entered Lower Caves 1343 | -7/Lower Caves | Encountered a Warlord checkpoint 1438 | -7/Lower Caves | Discovered new exit (range 9) 1439 | -7/Lower Caves | Entered another Lower Caves area 1489 | -7/Lower Caves | Learned Factory stockpile data 1523 | -7/Lower Caves | Discovered new exit (range 9) 1525 | -7/Lower Caves | Entered Zion 1537 | -7/Zion | System corruption cleaned by Quarantine Array 1563 | -7/Zion | Learned Factory emergency access door positions 1600 | -7/Zion | Received a visual enhancement algorithm 1617 | -7/Zion | Acquired unknown access codes intercepted by a Zionite 1634 | -7/Zion | Learned Factory machine intel 1741 | -7/Zion | Discovered new exit (range 9) 1758 | -7/Zion | Entered Proximity Caves 1761 | -6/Proximity Caves | Spotter reported a threat 1761 | -6/Proximity Caves | Spotter reported a threat 1823 | -6/Proximity Caves | Spotter reported a threat 1920 | -6/Proximity Caves | Spotter reported a threat 2030 | -6/Proximity Caves | Discovered new exit (range 5) 2033 | -6/Proximity Caves | Entered Factory 2033 | -6/Factory | Evolved 2 slots: Utility x2 2036 | -6/Factory | Loaded intel: 228 machine locations 2220 | -6/Factory | Discovered new exit (range 7) 2265 | -6/Factory | Entered Lower Caves 2267 | -6/Lower Caves | Learned Factory emergency access door positions 2272 | -6/Lower Caves | Identified exit to Lower Caves 2290 | -6/Lower Caves | Encountered a Warlord checkpoint 2333 | -6/Lower Caves | Spotted B-75 Beast 2374 | -6/Lower Caves | Entered another Lower Caves area 2391 | -6/Lower Caves | Build established: Hacker-Sprinter 2469 | -6/Lower Caves | Discovered new exit (range 5) 2477 | -6/Lower Caves | Entered Data Miner 2477 | -6/Data Miner | Discovered new exit (range 6) 2481 | -6/Data Miner | Met Data Miner 2485 | -6/Data Miner | Learned location of Section 7 (-3) 2485 | -6/Data Miner | Acquired the access code to Warlord's prototype stash 2489 | -6/Data Miner | Received God Mode back door access code from Data Miner 2517 | -6/Data Miner | Entered Proximity Caves 2519 | -5/Proximity Caves | Spotter reported a threat 2520 | -5/Proximity Caves | Spotter reported a threat 2594 | -5/Proximity Caves | Learned Factory emergency access door positions 2652 | -5/Proximity Caves | Discovered new exit (range 9) 2654 | -5/Proximity Caves | Entered Factory 2654 | -5/Factory | Evolved 2 slots: Utility x2 2655 | -5/Factory | Identified exit to Extension 2671 | -5/Factory | Identified exit to Upper Caves 2671 | -5/Factory | Identified exit to Factory 2697 | -5/Factory | Repaired Imp. Flight Unit 2728 | -5/Factory | Repaired Imp. VTOL Module 2954 | -5/Factory | Search patrols dispatched 3161 | -5/Factory | Entered Upper Caves 3218 | -5/Upper Caves | Encountered a Warlord checkpoint 3247 | -5/Upper Caves | Learned location of Armory (-3) 3483 | -5/Upper Caves | Discovered new exit (range 9) 3485 | -5/Upper Caves | Entered another Upper Caves area 3536 | -5/Upper Caves | Learned Factory terminal intel 3540 | -5/Upper Caves | Discovered new exit (range 10) 3543 | -5/Upper Caves | Entered Warlord 3551 | -5/Warlord | System corruption cleaned by Quarantine Array 3609 | -5/Warlord | Opened side exit 3668 | -5/Warlord | Warlord's base attacked by MAIN.C 3685 | -5/Warlord | Met Warlord 3688 | -5/Warlord | Opened Warlord's prototype stash 3690 | -5/Warlord | Found Prototype Hackware 3690 | -5/Warlord | Identified System Mapper 3697 | -5/Warlord | Found Prototype Processor 3697 | -5/Warlord | Identified Exp. Core Analyzer 3699 | -5/Warlord | Found Prototype Device 3699 | -5/Warlord | Identified System Purifier 3703 | -5/Warlord | Found Prototype Device 3703 | -5/Warlord | Identified Exp. Cloaking Device 3865 | -5/Warlord | Lost 3 allies 3902 | -5/Warlord | Discovered new exit (range 12) 3904 | -5/Warlord | Entered Proximity Caves 3921 | -4/Proximity Caves | Attracted the attention of an 0b10 checkpoint 3996 | -4/Proximity Caves | Spotted B-86 Titan 4010 | -4/Proximity Caves | Discovered exit to Factory (range 10) 4012 | -4/Proximity Caves | Entered Factory 4012 | -4/Factory | Evolved 2 slots: Propulsion x1, Utility x1 4014 | -4/Factory | Loaded intel: 25 terminal locations 4053 | -4/Factory | Build established: Wizard-Sprinter 4128 | -4/Factory | Identified exit to Upper Caves 4136 | -4/Factory | Lost 7 parts (2p1n4u) 4223 | -4/Factory | Lost 4 parts (1p2n1u) 4259 | -4/Factory | System corruption reached 10% 4491 | -4/Factory | Repaired Imp. Diametric Drive 4535 | -4/Factory | Discovered new exit (range 16) 4536 | -4/Factory | Destroyed 8 combat bots 4542 | -4/Factory | Lost 4 parts (2n2u) 4608 | -4/Factory | Entered Upper Caves 4646 | -4/Upper Caves | Discovered new exit (range 7) 4654 | -4/Upper Caves | Identified exit to Upper Caves 4655 | -4/Upper Caves | Entered another Upper Caves area 4724 | -4/Upper Caves | Attracted the attention of an 0b10 outpost 4769 | -4/Upper Caves | Discovered new exit (range 15) 4772 | -4/Upper Caves | Identified exit to Zhirov 4772 | -4/Upper Caves | Entered Zhirov 4772 | -4/Zhirov | Discovered new exit (range 3) 4782 | -4/Zhirov | Learned location of Quarantine (-3) 4782 | -4/Zhirov | Learned location of Testing (-2) 4782 | -4/Zhirov | Learned location of Command (-1) 4788 | -4/Zhirov | Found Alien Artifact 4788 | -4/Zhirov | Identified Integrated Dissipator 4788 | -4/Zhirov | Installed Integrated Dissipator, increased core heat dissipation (+20) 4797 | -4/Zhirov | Found Alien Artifact 4828 | -4/Zhirov | Cloak Generator disabled 4833 | -4/Zhirov | Identified exit to Proximity Caves 4833 | -4/Zhirov | Entered Proximity Caves 4841 | -3/Proximity Caves | Spotted B-86 Titan 4891 | -3/Proximity Caves | Discovered new exit (range 15) 4894 | -3/Proximity Caves | Identified exit to Research 4895 | -3/Proximity Caves | Entered Research 4895 | -3/Research | Evolved 2 slots: Utility x2 5151 | -3/Research | Discovered new exit (range 15) 5154 | -3/Research | Identified exit to Armory 5155 | -3/Research | Entered Armory 5166 | -3/Armory | Identified exit to Research 5266 | -3/Armory | Found Prototype Processor 5266 | -3/Armory | Identified Exp. Target Analyzer 5282 | -3/Armory | Found Prototype Launcher 5282 | -3/Armory | Identified Hellfire Missile Launcher 5292 | -3/Armory | Spotted B-86 Titan 5312 | -3/Armory | Energy Cycler disabled 5386 | -3/Armory | Fabricated G-67 Veteran? 5404 | -3/Armory | Identified Transdimensional Reconstructor 5404 | -3/Armory | Warped through subspace to slip node 5404 | -3/Armory | Discovered new exit (range 1) 5404 | -3/Armory | Identified exit to Lab 5405 | -3/Armory | Entered Lab 5407 | -3/Lab | Discovered exit to Research (range 9) 5409 | -3/Lab | Unable to decrypt terminal 5409 | -3/Lab | Opened the door to a hidden lab 5410 | -3/Lab | Gained access to the hidden lab's interior 5410 | -3/Lab | Detected by scanners 5410 | -3/Lab | Unable to decrypt terminal 5410 | -3/Lab | Unable to decrypt terminal 5417 | -3/Lab | Found Alien Artifact 5417 | -3/Lab | Identified Integrated Reactor 5417 | -3/Lab | Installed Integrated Reactor, increased core energy generation (+10) 5421 | -3/Lab | Confronted by A5 5424 | -3/Lab | Found Alien Artifact 5424 | -3/Lab | Identified Core Expander 5424 | -3/Lab | Installed Core Expander, added new Propulsion slot 5435 | -3/Lab | Found Prototype Hackware 5435 | -3/Lab | Identified Deep Network Scanner 5438 | -3/Lab | Found Prototype Protection 5438 | -3/Lab | Identified Exp. Powered Armor 5443 | -3/Lab | Unable to decrypt terminal 5458 | -3/Lab | Found Prototype Energy Cannon 5458 | -3/Lab | Identified Potential Cannon 5473 | -3/Lab | Found Alien Artifact 5473 | -3/Lab | Identified Core Reset Matrix 5473 | -3/Lab | Used Core Reset Matrix 5477 | -3/Lab | Sensed 1 artifact in vicinity 5479 | -3/Lab | Found Transdimensional Reconstructor 5479 | -3/Lab | Warped through subspace 5484 | -3/Lab | Discovered exit to Research (range 6) 5485 | -3/Lab | Entered Research 5485 | -2/Research | Warlord forces began assault on 0b10 5485 | -2/Research | Evolved 2 slots: Power x1, Weapon x1 5509 | -2/Research | Lost 6 parts (1p4n1u) 5519 | -2/Research | Found Prototype Device 5519 | -2/Research | Identified Exp. Force Field 5539 | -2/Research | Identified exit to Testing 5595 | -2/Research | Research machine network offline 5639 | -2/Research | Spotted Tracker 5641 | -2/Research | Spotted Tracker 5652 | -2/Research | Spotted Combat Programmer 5668 | -2/Research | Combat Programmer assimilated allied BD-6GZ(S) 5671 | -2/Research | Combat Programmer assimilated allied TR-WHV(S) 5700 | -2/Research | Lost 13 parts (1p6n5u1w) 5826 | -2/Research | Borebot progress halted 5881 | -2/Research | Met up with Warlord 5907 | -2/Research | Discovered new exit (range 10) 6053 | -2/Research | Spotted Striker 6058 | -2/Research | Borebot progress halted 6060 | -2/Research | Destroyed Striker 6077 | -2/Research | Spotted Executioner 6079 | -2/Research | Spotted Executioner 6080 | -2/Research | Destroyed Executioner 6082 | -2/Research | Destroyed Executioner 6103 | -2/Research | Destroyed 7 combat bots 6311 | -2/Research | Entered Testing 6372 | -2/Testing | Found Prototype Processor 6531 | -2/Testing | Scanned by Researcher 6628 | -2/Testing | Identified Exp. Signal Interpreter 6688 | -2/Testing | System corruption reached 10% 6731 | -2/Testing | Lost 7 parts (1p1n4u1w) 6746 | -2/Testing | Found Unknown Protection 6746 | -2/Testing | Identified Hvy. Reflective Plating 6751 | -2/Testing | Garrison activated, responded to threat 6758 | -2/Testing | Core integrity fell below 50% 6791 | -2/Testing | Lost 4 parts (2n2w) 6907 | -2/Testing | Found Prototype Launcher 6977 | -2/Testing | Found Prototype Leg 6977 | -2/Testing | Identified Myomer Exoskeleton 7010 | -2/Testing | System corruption reached 30% 7028 | -2/Testing | Found Unknown Protection 7028 | -2/Testing | Identified Hvy. Reflective Plating 7050 | -2/Testing | Found Hvy. Reflective Plating 7053 | -2/Testing | Found Hvy. Reflective Plating 7058 | -2/Testing | Found Hvy. Reflective Plating 7102 | -2/Testing | Found Prototype Energy Cannon 7102 | -2/Testing | Identified Null Cannon 7276 | -2/Testing | Spotted Striker 7276 | -2/Testing | Spotted Striker 7285 | -2/Testing | Spotted Alpha 7 7312 | -2/Testing | Destroyed Striker 7353 | -2/Testing | Core integrity fell below 20% 7388 | -2/Testing | Lost 19 parts (2p5n9u3w) 7390 | -2/Testing | Destroyed by G-73 Enforcer with Phase Gun Last Messages --------------- 07353_ Slug penetrates Wall. 07353_ Slug penetrates G-73 Enforcer. 07353_ Slug penetrates Earth. 07354_ Penetrated by Slug. 07355_ The unstable cave ceiling collapses. 07355_ 22 Matter crushed. 07355_ Acquired Enh. Armored Medium Treads. 07356_ Penetrated by Slug. 07356_ Slug penetrates Terminal. 07357_ Penetrated by Slug. 07357_ Centrium Leg destroyed. 07357_ Acquired Neutron Missile Launcher. 07372_ Acquired Prototype Treads. 07372_ Identified Hdn. Centrium Heavy Treads. 07383_ Slammed into P-80 Master. 07387_ Penetrated by Slug. 07388_ Enh. Armored Medium Treads destroyed. 07388_ Slammed into P-80 Master. 07389_ Penetrated by Slug. 07390_ Slammed into H-88 Terminator. Map ----- +----------------------------------------------------+ | ???????# =%!# # ######### # =!=#???? | | ???????# ] = ##########???? | | ????#### # #????????????? | | ????? = # ###########????????????? | | ????????# ## #[ #?????????????????????? | | ?????????# # #??????????????????????? | | ???????????# [ #??????????????????????? | | ??????????## # # ###########????????????? | | ??????????# # ! #????????????? | | ?????????## # # # ! """"" #????????????? | | ??#??????# [ "# # [ ""T"" #????????????? | | ??# ######" %! "# + [ #????????????? | | ??# " !% "## # [][= = #????????????? | | ??# " ]!* " # # [ = / #????????????? | | ??# % ]!! ## ###############????????????? | | ??# ##" % * [ ##$ #!"""#"#??????????????????? | | ????# ] #* "$"##??????????????????? | | ????# ! + " #??????????????????? | | ????+ ####### # = ]*#??????????????????? | | ???#" #?## ## "|!##??????????????????? | | ???#" #?# ## """#"#?????##########???? | | ???##"" # ## #########?????# [#???? | | ????# ###### #?????????????# """ #???? | | ????# ????# ############### """ =#???? | | ????### ????# p ghg7 # """ #???? | | ??????# #???# h@ p p + #???? | | ??????# ##???#+###########/##+# """ #???? | | ??????#### #"#???????????# # """ #???? | | ????????? ??????????????# + """ ! #???? | | ????????? ??????????????# # #???? | | ????????? ??????????????# ! ##+#######???? | | ????????? ??????????????# | ## #?????????? | | ??????????????????????????# / ## #?????????? | | ??????????????????????????#! ## #?????????? | | ??????????????????????????# ! + #?????????? | | ??????????????????????????##############?????????? | | ?????????????????????????????????????????????????? | | ?????????????????????????????????????????????????? | | ?????????????????????????????????????????????????? | | ?????????????????????????????????????????????????? | | | | | | | | | | | | | | | | | | | | | +----------------------------------------------------+ Best States ------------- Heat Dissipation 126 Energy Generation 55 Energy Capacity 895 Matter Stores 300 Matter Capacity 300 Sight Range 16 Robot Scan Range 16 Terrain Scan Range 20 Terrain Scan Density 110 Cloak Strength 4 Additional Mass Support 9 Corruption Block 19 Armor Coverage 1600 Resistance: TH 25 Core Shielding 30 Phase Shifting 10 Evasion (%) 77 Targeting Accuracy 8 Melee Accuracy 6 Recoil Reduction 6 Energy Filtering 50 Offensive Hacking 82 Defensive Hacking 21 Item Schematics ----------------- Hvy. Neutron Cannon | -2/Testing | Archive Com. Tesla Bomb Launcher | -2/Testing | Archive Exp. Terrain Scan Processor | -2/Testing | Archive Cld. Q-thruster | -2/Testing | Archive Exp. Actuator Array | -2/Testing | Archive Exp. Core Shielding | -2/Testing | Archive Hvy. Hardcell Cannon | -2/Testing | Archive Exp. Biometal Heavy Treads | -2/Testing | Archive Exp. Heat Sink | -2/Testing | Archive Ionic Axe | -2/Testing | Archive Exp. Targeting Computer | -2/Testing | Archive Hdn. Centrium Wheel | -2/Testing | Archive Exp. Q-thruster | -2/Testing | Archive Robot Schematics ------------------ E-15 Imp | -2/Testing | Archive R-06 Scavenger | -2/Testing | Archive A-15 Conveyor | -2/Testing | Archive T-07 Excavator | -2/Testing | Archive B-74 Champion | -2/Testing | Archive L-61 Swordsman | -2/Testing | Archive Fabricated ------------ G-67 Veteran | x3 | -3/Armory | Preloaded Alien Tech Used ----------------- Integrated Dissipator Transdimensional Reconstructor Integrated Reactor Core Expander Core Reset Matrix Achievements -------------- Alien Roots All-out Warlord Anyone Home? Reappropriation Subspace Traveler Ultimate Loadout Watch This! Challenges ------------ None Game ------ Seed CoolingParticlePropulsion Manual? 0 Play Time 02:45:52 Cumulative 121.5 hours Start 2025.03.24 @ 22:36:56 End 2025.03.25 @ 11:05:38 Sessions 5 Manual Loads 0 Difficulty Rogue Special Mode None Game No. 128 Rogue 128 Adventurer 0 Explorer 0 Win Type - Total 2 Types 2/0/0/0/0/0/0/0/0 Lore% 47 Gallery% 62 Achievement% 53 Wizard Run 0 Options --------- Layout 2 ASCII 0 Keyboard 1 Movement Numpad Keybinds 0 Fullscreen 2 Font 24/Swanston Map View 50x44 Zoom Use 0% Tactical HUD 1 Map Filters NONE Filters NONE Steam 1 RUN: 12373d7f-2bb3-420f-8c56-d92b873da7ff